bitfinex/quotes_SOLUSD_20250811
["timestamp","ask_amount","ask_price","bid_price","bid_amount"]
[1754896822813,110.71,184.23,184.18,43.90862559]
[1754896823001,110.71,184.23,184.19,4.80862559]
[1754896823513,0.7,184.22,184.19,4.80862559]
[1754896823822,30.0,184.21,184.19,4.80862559]
[1754896824327,0.7,184.2,184.17,0.06]
[1754896824533,0.7,184.19,184.17,0.06]
[1754896824823,0.7,184.2,184.17,0.06]
[1754896825224,30.0,184.18,184.17,5.48976597]
[1754896826310,30.0,184.18,184.17,0.06]
[1754896830129,30.69,184.18,184.17,0.06]
[1754896830336,30.0,184.18,184.17,0.06]
[1754896830635,30.0,184.18,184.17,4.86862559]
[1754896830810,30.0,184.18,184.17,5.52862559]
[1754896831424,5.49862559,184.22,184.17,5.52862559]
[1754896831607,0.69,184.21,184.17,5.52862559]
[1754896832730,0.69,184.21,184.17,0.72]
[1754896832933,0.69,184.2,184.17,0.72]
[1754896833137,0.69,184.2,184.17,0.06]
[1754896833346,0.69,184.2,184.17,4.86862559]
[1754896833548,10.23697234,184.22,184.17,4.86862559]
[1754896833706,0.69,184.19,184.17,0.06]
[1754896835532,30.0,184.18,184.17,0.06]
[1754896841045,30.69,184.18,184.17,0.06]
[1754896845019,30.0,184.18,184.17,0.06]
[1754896845234,30.69,184.18,184.17,0.06]
[1754896846939,30.0,184.18,184.17,0.06]
[1754896847341,30.69,184.18,184.17,0.06]
[1754896847644,30.0,184.18,184.17,0.06]
[1754896847843,30.0,184.18,184.17,0.72]
[1754896848153,30.0,184.18,184.17,0.06]
[1754896849072,30.0,184.18,184.17,0.72]
[1754896849241,30.0,184.18,184.17,5.52862559]
[1754896849647,30.0,184.18,184.17,43.78862559]
[1754896850345,0.03,184.19,184.18,5.42947116]
[1754896850546,0.03,184.19,184.18,10.23809675]
[1754896850756,0.03,184.19,184.18,10.89809675]
[1754896853593,0.03,184.21,184.18,30.81293791]
[1754896853746,0.03,184.22,184.18,30.81293791]
[1754896853747,0.03,184.22,184.21,20.5348025]
[1754896854083,80.03,184.23,184.21,63.60342809]
[1754896854246,80.03,184.23,184.22,4.80862559]
[1754896854446,80.03,184.23,184.22,5.46862559]
[1754896855241,80.03,184.23,184.22,46.57484116]
[1754896855242,51.14629376,184.23,184.22,46.57484116]
[1754896855448,0.03,184.25,184.23,15.10621557]
[1754896855678,0.03,184.25,184.23,20.57484116]
[1754896855880,0.03,184.25,184.23,26.00283877]
[1754896856675,0.03,184.25,184.23,10.8966232]
[1754896856865,0.03,184.25,184.23,10.2366232]
[1754896857050,0.03,184.25,184.23,48.4966232]
[1754896857483,0.03,184.25,184.23,49.1566232]
[1754896858875,1e-08,184.24,184.23,64.26283877]
[1754896859075,1e-08,184.25,184.23,64.26283877]
[1754896859250,1e-08,184.25,184.24,5.46862559]
[1754896859671,1e-08,184.25,184.24,5.48862559]
[1754896860151,0.03,184.29,184.25,15.10621557]
[1754896860352,0.03,184.29,184.28,4.80862559]
[1754896860571,0.03,184.29,184.28,43.04862559]
[1754896860782,0.03,184.29,184.28,43.72862559]
[1754896861852,0.69,184.29,184.28,38.24]
[1754896862484,0.69,184.29,184.28,48.47515044]
[1754896862859,0.69,184.29,184.28,43.66652485]
[1754896863059,0.69,184.29,184.28,38.24]
[1754896863783,30.69,184.29,184.28,38.24]
[1754896864352,30.69,184.29,184.28,43.66652485]
[1754896865175,0.69,184.29,184.28,43.66652485]
[1754896865485,0.69,184.29,184.28,38.24]
[1754896865653,0.69,184.29,184.25,5.42733155]
[1754896865856,0.69,184.29,184.24,38.22]
[1754896865857,4.80862559,184.27,184.24,38.22]
[1754896866281,0.66,184.26,184.24,38.22]
[1754896866648,0.66,184.26,184.25,5.42740841]
[1754896866877,30.66,184.28,184.25,5.42740841]
[1754896867091,30.0,184.28,184.25,5.42740841]
[1754896867279,0.66,184.27,184.24,48.45627175]
[1754896867479,0.66,184.27,184.24,38.22]
[1754896869066,30.0,184.26,184.24,43.6476831]
[1754896869385,30.66,184.26,184.24,43.6476831]
[1754896870370,30.66,184.26,184.24,48.45630869]
[1754896870568,30.0,184.26,184.25,5.48862559]
[1754896870762,0.03,184.29,184.25,5.48862559]
[1754896870965,0.03,184.29,184.28,4.80862559]
[1754896871206,0.03,184.29,184.28,43.00862559]
[1754896871207,30.03,184.29,184.28,43.00862559]
[1754896872295,30.03,184.29,184.28,38.2]
[1754896872465,30.69,184.29,184.28,38.2]
[1754896873267,0.69,184.29,184.28,38.2]
[1754896873909,0.69,184.29,184.25,4.80862559]
[1754896874065,0.69,184.29,184.25,38.9]
[1754896874265,0.69,184.29,184.26,4.80862559]
[1754896874480,0.69,184.29,184.26,10.23569277]
[1754896874762,0.66,184.28,184.26,38.22]
[1754896875377,0.03,184.29,184.19,0.68]
[1754896875378,35.46862559,184.27,184.19,0.68]
[1754896875574,4.80862559,184.25,184.2,43.02862559]
[1754896875789,30.66,184.27,184.23,4.80862559]
[1754896876305,0.66,184.26,184.22,38.22]
[1754896876472,0.66,184.25,184.22,43.02862559]
[1754896877089,0.66,184.24,184.22,38.22]
[1754896877780,30.66,184.24,184.22,38.22]
[1754896878498,30.0,184.24,184.22,38.22]
[1754896878674,0.66,184.23,184.2,10.23723447]
[1754896879016,0.66,184.22,184.2,38.22]
[1754896879175,0.66,184.22,184.18,5.42941587]
[1754896879370,0.66,184.21,184.17,0.06]
[1754896879566,30.66,184.2,184.17,43.08862559]
[1754896879795,30.66,184.2,184.17,43.76862559]
[1754896879796,30.0,184.2,184.17,43.76862559]
[1754896879973,30.0,184.2,184.17,43.08862559]
[1754896880378,0.66,184.19,184.17,38.28]
[1754896880666,0.66,184.18,184.17,0.06]
[1754896882202,30.66,184.18,184.17,0.06]
[1754896883302,30.0,184.18,184.17,0.06]
[1754896884022,30.0,184.18,184.17,5.54862559]
[1754896884205,30.0,184.18,184.17,10.97839156]
[1754896884407,0.66,184.21,184.17,10.29839156]
[1754896884615,0.66,184.2,184.17,10.29839156]
[1754896885298,0.66,184.19,184.17,5.48976597]
[1754896886420,30.0,184.18,184.17,5.48976597]
[1754896887131,30.0,184.18,184.17,5.54862559]
[1754896887618,30.0,184.18,184.17,43.76862559]
[1754896887796,30.0,184.18,184.17,38.96]
[1754896887997,30.0,184.18,184.17,43.76862559]
[1754896888393,4.80862559,184.21,184.17,0.06]
[1754896888899,0.66,184.2,184.17,0.06]
[1754896889312,0.66,184.2,184.17,4.86862559]
[1754896889507,0.66,184.22,184.18,4.80862559]
[1754896889714,0.66,184.21,184.18,4.80862559]
[1754896889921,30.0,184.19,184.18,4.80862559]
[1754896891242,30.0,184.19,184.17,4.86862559]
[1754896891434,30.0,184.19,184.18,5.42947116]
[1754896891813,30.0,184.19,184.18,10.95809675]
[1754896892239,30.0,184.19,184.18,5.42947116]
[1754896892438,30.0,184.19,184.18,10.23809675]
[1754896892645,30.0,184.19,184.18,10.95809675]
[1754896892812,30.0,184.19,184.18,10.23809675]
[1754896893144,30.0,184.19,184.18,5.42947116]
[1754896893643,30.72,184.19,184.18,5.42947116]
[1754896894446,30.72,184.19,184.17,0.06]
[1754896894738,0.72,184.18,184.17,0.06]
[1754896895306,30.72,184.18,184.17,0.06]
[1754896896543,35.52862559,184.18,184.17,0.06]
[1754896898334,5.52862559,184.18,184.17,0.06]
[1754896900735,10.95809675,184.18,184.17,0.06]
[1754896900928,52.06431232,184.18,184.17,0.06]
[1754896901122,56.06431232,184.18,184.17,0.06]
[1754896901528,94.24431232,184.18,184.17,0.06]
[1754896915560,93.50431232,184.18,184.17,0.06]
[1754896915949,94.22431232,184.18,184.17,0.06]
[1754896926182,89.41568673,184.18,184.17,0.06]
[1754896926385,94.22431232,184.18,184.17,0.06]
[1754896928158,93.50431232,184.18,184.17,0.06]
[1754896928366,94.17431232,184.18,184.17,0.06]
[1754896933182,89.36568673,184.18,184.17,0.06]
[1754896933480,94.17431232,184.18,184.17,0.06]
[1754896933685,89.36568673,184.18,184.17,0.06]
[1754896933891,94.17431232,184.18,184.17,0.06]
[1754896935594,96.34911132,184.18,184.17,0.06]
[1754896936909,15.10621557,184.17,184.16,0.06]
[1754896937115,50.58484116,184.17,184.16,0.06]
[1754896937397,56.01460713,184.17,184.13,0.06]
[1754896937586,45.91484116,184.14,184.13,1e-08]
[1754896937769,84.07484116,184.14,184.13,1e-08]
[1754896937970,114.07484116,184.14,184.13,1e-08]
[1754896938305,114.07484116,184.14,184.11,0.06]
[1754896938306,114.74484116,184.14,184.11,0.06]
[1754896938476,19.91484116,184.12,184.11,0.72]
[1754896939090,49.91484116,184.12,184.11,0.06]
[1754896939411,50.53745606,184.12,184.11,0.06]
[1754896939571,40.23986608,184.12,184.11,0.72]
[1754896939971,60.80862559,184.12,184.11,0.72]
[1754896940283,56.01608165,184.12,184.11,0.06]
[1754896944082,61.44989265,184.12,184.11,0.06]
[1754896944322,26.0,184.09,184.07,0.66]
[1754896944508,15.10621557,184.11,184.07,0.66]
[1754896944509,99.00862559,184.08,184.07,0.66]
[1754896944685,98.98862559,184.08,184.07,0.66]
[1754896945013,99.10862559,184.08,184.01,4.80862559]
[1754896945213,4.80862559,184.06,184.01,4.80862559]
[1754896945421,4.80862559,184.06,183.99,5.43499408]
[1754896945422,73.7334288,184.05,184.02,0.66]
[1754896945812,73.7334288,184.05,184.03,0.66]
[1754896945813,68.3,184.05,184.03,0.66]
[1754896946020,78.54194932,184.05,184.04,0.66]
[1754896946201,73.73332373,184.05,184.04,0.66]
[1754896946534,78.54194932,184.05,184.04,0.66]
[1754896947199,78.54194932,184.05,183.98,0.2]
[1754896947200,26.0,184.01,183.98,0.2]
[1754896947533,30.0,183.99,183.98,0.86]
[1754896947907,68.34,183.99,183.98,0.86]
[1754896948431,73.14862559,183.99,183.98,0.86]
[1754896948636,68.34,183.99,183.98,0.86]
[1754896948835,68.84,183.99,183.98,0.86]
[1754896949204,68.84,183.99,183.98,0.2]
[1754896949547,79.08370358,183.99,183.98,0.2]
[1754896949721,40.74370358,183.99,183.98,0.2]
[1754896949905,79.08370358,183.99,183.98,0.2]
[1754896950246,74.27507799,183.99,183.98,0.2]
[1754896950537,94.86991915,183.99,183.98,0.2]
[1754896951552,97.5251947,183.99,183.98,1e-08]
[1754896952123,59.1851947,183.99,183.98,1e-08]
[1754896952308,94.86991915,183.99,183.98,1e-08]
[1754896952726,94.18991915,183.99,183.98,1e-08]
[1754896953735,94.36991915,183.99,183.98,1e-08]
[1754896954032,88.88129356,183.99,183.98,1e-08]
[1754896954207,94.36991915,183.99,183.98,1e-08]
[1754896957738,99.17854515,183.99,183.98,1e-08]
[1754896962125,99.17854515,183.99,183.94,0.06]
[1754896962451,19.91484116,183.95,183.94,0.06]
[1754896962622,88.21484116,183.95,183.94,0.06]
[1754896962832,35.43625985,183.95,183.94,0.06]
[1754896963143,78.54488544,183.95,183.94,0.75]
[1754896963344,73.73625985,183.95,183.94,0.75]
[1754896963557,78.54488544,183.95,183.94,0.75]
[1754896964133,94.33110101,183.95,183.94,0.06]
[1754896964457,93.65110101,183.95,183.94,0.06]
[1754896964631,93.65110101,183.95,183.94,0.75]
[1754896965316,88.84247542,183.95,183.94,0.75]
[1754896965530,93.65110101,183.95,183.94,0.75]
[1754896966347,119.65110101,183.95,183.94,0.75]
[1754896967253,119.65110101,183.95,183.94,0.06]
[1754896967770,104.54488544,183.95,183.94,0.06]
[1754896971168,104.54488544,183.95,183.94,0.75]
[1754896971359,99.73625985,183.95,183.94,0.75]
[1754896971565,104.54488544,183.95,183.94,0.75]
[1754896971982,56.0,183.95,183.94,0.75]
[1754896972271,94.3,183.95,183.94,0.75]
[1754896972447,104.54488544,183.95,183.94,0.75]
[1754896973242,99.10862559,183.95,183.94,0.75]
[1754896974749,104.54488544,183.95,183.94,0.75]
[1754896974968,94.33110101,183.95,183.94,0.06]
[1754896976774,55.35110101,183.95,183.94,0.06]
[1754896976978,93.63110101,183.95,183.94,0.75]
[1754896977157,73.08862559,183.95,183.94,0.75]
[1754896977353,78.52488544,183.95,183.94,0.75]
[1754896977574,73.08862559,183.95,183.94,0.75]
[1754896978355,68.28,183.95,183.94,0.75]
[1754896978574,73.08862559,183.95,183.94,0.75]
[1754896978758,68.28,183.95,183.94,0.75]
[1754896979057,73.08862559,183.95,183.94,0.75]
[1754896979389,73.76862559,183.95,183.94,0.06]
[1754896979551,73.08862559,183.95,183.94,0.75]
[1754896980248,30.0,183.95,183.94,0.75]
[1754896980484,68.26,183.95,183.94,0.75]
[1754896981289,43.06862559,183.95,183.94,0.75]
[1754896981586,38.26,183.95,183.94,0.75]
[1754896982486,13.626242,183.99,183.94,10.99517585]
[1754896982695,0.03,183.99,183.98,4.80862559]
[1754896982867,30.03,183.99,183.98,5.51862559]
[1754896983061,30.03,183.99,183.98,0.71]
[1754896983258,30.03,183.99,183.98,6.14537341]
[1754896983573,30.03,183.99,183.98,0.71]
[1754896983979,0.03,183.99,183.98,0.71]
[1754896985456,0.03,183.99,183.98,6.14537341]
[1754896985771,0.03,183.99,183.98,0.71]
[1754896986167,0.03,183.99,183.98,5.51862559]
[1754896986365,0.03,183.99,183.98,0.71]
[1754896987958,0.03,183.99,183.98,5.51862559]
[1754896988193,0.03,183.99,183.98,10.953999]
[1754896988385,0.03,183.99,183.98,0.71]
[1754896988968,0.03,183.99,183.98,5.51862559]
[1754896989186,0.03,183.99,183.98,10.953999]
[1754896991982,0.03,183.99,183.98,6.14537341]
[1754896992187,0.03,183.99,183.98,0.71]
[1754896992498,0.03,183.99,183.98,5.51862559]
[1754896992696,0.03,183.99,183.98,10.953999]
[1754896993472,0.03,183.99,183.98,6.14537341]
[1754896993688,0.03,183.99,183.98,10.953999]
[1754896994294,0.03,183.99,183.98,56.86884016]
[1754896994295,1e-08,183.99,183.98,56.86884016]
[1754896994589,0.03,184.02,183.98,56.86884016]
[1754896994590,0.03,184.02,183.99,15.10621557]
[1754896994795,0.03,184.02,184.01,4.80862559]
[1754896995093,0.03,184.02,184.01,19.91484116]
[1754896995275,0.03,184.02,184.01,20.62484116]
[1754896995487,0.03,184.02,184.01,26.05932841]
[1754896996482,0.03,184.02,184.01,0.71]
[1754896996887,0.03,184.02,183.99,6.14507799]
[1754896997094,0.03,184.02,183.99,5.51862559]
[1754896997487,5.54862559,184.02,183.97,5.51862559]
[1754896997809,0.71,184.01,183.97,0.71]
[1754896998784,5.51862559,184.0,183.95,10.95485933]
[1754896998991,0.71,184.0,183.95,10.95485933]
[1754896999206,5.51862559,184.0,183.95,6.14623374]
[1754896999394,0.71,183.99,183.95,4.80862559]
[1754896999902,0.71,183.99,183.95,5.51862559]
[1754897000095,6.14451674,184.01,183.96,5.51862559]
[1754897000289,5.43451674,184.01,183.97,0.71]
[1754897000899,10.95314233,184.01,183.97,0.71]
[1754897001100,5.51862559,184.0,183.95,0.71]
[1754897001304,0.71,183.99,183.95,5.51862559]
[1754897001985,0.71,183.98,183.94,0.06]
[1754897002185,5.51862559,183.98,183.94,0.06]
[1754897002499,0.71,183.97,183.94,0.06]
[1754897002702,0.71,183.96,183.94,0.06]
[1754897002892,4.80862559,183.97,183.94,0.06]
[1754897002893,0.71,183.97,183.94,0.06]
[1754897003095,4.80862559,183.98,183.94,0.06]
[1754897003411,5.51862559,183.98,183.94,0.06]
[1754897003996,5.51862559,183.98,183.94,0.77]
[1754897004412,5.51862559,183.98,183.94,0.06]
[1754897004591,0.71,183.97,183.94,0.06]
[1754897004915,5.51862559,183.96,183.94,0.06]
[1754897005401,26.71,183.95,183.94,0.06]
[1754897006000,31.51862559,183.95,183.94,0.06]
[1754897006301,36.95488544,183.95,183.94,0.06]
[1754897010017,66.95488544,183.95,183.94,0.06]
[1754897010909,105.25488544,183.95,183.94,0.06]
[1754897012791,95.01,183.95,183.94,0.06]
[1754897013207,99.10862559,183.95,183.94,0.06]
[1754897013422,104.54488544,183.95,183.94,0.06]
[1754897013723,105.23488544,183.95,183.94,0.06]
[1754897014122,99.79862559,183.95,183.94,0.06]
[1754897014320,99.10862559,183.95,183.94,0.06]
[1754897014818,99.73625985,183.95,183.94,0.06]
[1754897015006,105.23488544,183.95,183.94,0.06]
[1754897016521,100.42625985,183.95,183.94,0.06]
[1754897016718,99.79862559,183.95,183.94,0.06]
[1754897017720,99.73625985,183.95,183.94,0.06]
[1754897018414,94.3,183.95,183.94,0.06]
[1754897018799,68.3,183.95,183.94,0.06]
[1754897018994,30.0,183.95,183.94,0.76]
[1754897019196,30.0,183.95,183.94,5.56862559]
[1754897020114,38.26,183.98,183.94,5.56862559]
[1754897020730,38.26,183.98,183.95,0.7]
[1754897022035,38.26,183.98,183.96,0.7]
[1754897022232,26.0,184.0,183.95,10.24474657]
[1754897022438,0.03,184.02,183.97,5.50862559]
[1754897022439,10.96283231,184.02,183.97,5.50862559]
[1754897022607,38.24,184.01,183.97,5.50862559]
[1754897022807,38.24,184.01,183.98,0.7]
[1754897023025,30.0,183.99,183.98,0.7]
[1754897023624,0.69,183.99,183.94,0.76]
[1754897023822,0.69,183.99,183.94,4.86862559]
[1754897024131,4.80862559,184.0,183.95,5.50862559]
[1754897024331,4.80862559,184.0,183.94,0.06]
[1754897024332,38.24,184.01,183.97,4.80862559]
[1754897024532,43.67453133,184.01,183.97,4.80862559]
[1754897024711,44.36453133,184.01,183.97,5.50862559]
[1754897024916,0.69,184.0,183.95,5.50862559]
[1754897025109,0.69,183.99,183.95,5.50862559]
[1754897025812,0.69,183.99,183.95,6.13623677]
[1754897026012,0.69,183.99,183.95,10.94486236]
[1754897026236,0.69,183.99,183.95,5.50862559]
[1754897026816,43.04862559,184.01,183.95,5.50862559]
[1754897026817,38.24,184.01,183.97,4.80862559]
[1754897027031,38.24,184.01,183.95,5.43616274]
[1754897027223,38.24,184.01,183.97,5.50862559]
[1754897027634,38.24,184.01,183.97,4.80862559]
[1754897027830,38.24,184.01,183.98,5.50862559]
[1754897028139,38.25,184.02,183.99,5.50862559]
[1754897028328,30.0,184.0,183.99,5.50862559]
[1754897028634,38.25,184.02,183.99,5.50862559]
[1754897029016,38.25,184.02,183.94,13.65112832]
[1754897029017,0.03,184.02,184.01,4.80862559]
[1754897029229,30.03,184.02,184.01,5.50862559]
[1754897029637,30.03,184.02,184.01,0.7]
[1754897030011,30.03,184.02,184.01,5.50862559]
[1754897031047,0.03,184.02,184.01,5.50862559]
[1754897032239,0.03,184.02,184.01,10.94311284]
[1754897032438,0.03,184.02,184.0,5.43474575]
[1754897032611,0.03,184.02,184.01,4.80862559]
[1754897032814,0.03,184.02,183.95,144.2968652]
[1754897033015,0.69,184.01,183.97,0.7]
[1754897033221,0.69,184.0,183.95,6.13620466]
[1754897033527,0.69,184.0,183.96,4.80862559]
[1754897034342,0.69,184.0,183.96,5.50862559]
[1754897035628,0.69,184.0,183.96,10.94455419]
[1754897035938,48.46315433,184.01,183.97,0.7]
[1754897036360,49.15315433,184.01,183.97,0.7]
[1754897036533,38.22,184.01,183.97,4.80862559]
[1754897036750,38.22,184.01,183.98,0.7]
[1754897036926,38.22,184.01,183.99,5.50862559]
[1754897037261,0.03,184.02,183.99,4.80862559]
[1754897037831,0.72,184.02,183.99,4.80862559]
[1754897038023,38.92,184.02,183.99,4.80862559]
[1754897039648,0.72,184.02,183.99,4.80862559]
[1754897039863,38.92,184.02,183.99,4.80862559]
[1754897040458,38.23,184.02,184.01,4.80862559]
[1754897040676,0.03,184.02,184.01,10.93311284]
[1754897045967,0.03,184.02,184.01,3.45104799]
[1754897046955,0.03,184.02,184.01,8.88553524]
[1754897048777,0.03,184.02,184.01,23.99175081]
[1754897052878,0.03,184.02,184.01,113.59175081]
[1754897053784,0.03,184.03,184.01,113.59175081]
[1754897054084,0.03,184.03,184.02,43.69862559]
[1754897055377,0.03,184.05,184.03,15.10621557]
[1754897055600,0.03,184.06,184.05,15.10621557]
[1754897055901,0.03,184.08,184.05,58.09484116]
[1754897056108,0.03,184.08,184.07,4.80862559]
[1754897056404,0.68,184.13,184.07,24.72346675]
[1754897056612,0.68,184.13,184.12,4.80862559]
[1754897057605,5.4594731,184.18,184.12,4.80862559]
[1754897057606,0.68,184.16,184.12,10.23986608]
[1754897057921,0.68,184.17,184.15,4.80862559]
[1754897058377,0.68,184.17,184.12,5.43124049]
[1754897058577,0.68,184.17,184.13,4.80862559]
[1754897061210,6.10979789,184.17,184.13,4.80862559]
[1754897061420,4.80862559,184.15,184.09,89.6]
[1754897061583,4.80862559,184.15,184.08,5.43212946]
[1754897061584,4.80862559,184.12,184.07,42.98862559]
[1754897061786,0.68,184.11,184.07,42.98862559]
[1754897061979,10.92016594,184.11,184.06,4.80862559]
[1754897062178,0.68,184.1,184.06,10.24159961]
[1754897062476,0.68,184.09,184.06,4.80862559]
[1754897062678,0.68,184.08,184.06,4.80862559]
[1754897063308,0.68,184.08,184.05,4.80862559]
[1754897064095,0.68,184.08,184.05,10.2419172]
[1754897064485,0.68,184.07,184.04,38.18]
[1754897064689,0.68,184.07,184.03,4.80862559]
[1754897064886,4.80862559,184.08,184.03,4.80862559]
[1754897064887,0.68,184.06,184.03,4.80862559]
[1754897065489,0.68,184.06,183.98,13.58796344]
[1754897065490,0.68,184.06,183.99,4.86862559]
[1754897065715,0.68,184.06,183.99,0.06]
[1754897065716,4.80862559,184.03,183.99,0.06]
[1754897065921,0.68,184.02,183.99,0.06]
[1754897066404,26.0,184.05,183.99,0.06]
[1754897066405,0.68,184.01,183.99,4.86862559]
[1754897066628,0.68,184.03,183.99,4.86862559]
[1754897066829,36.24225024,184.04,183.99,4.86862559]
[1754897067020,0.68,184.02,183.99,4.86862559]
[1754897068126,0.68,184.01,183.99,0.06]
[1754897069017,10.24259963,184.03,183.99,0.06]
[1754897069220,0.68,184.0,183.99,0.06]
[1754897070455,10.24259963,184.03,183.99,0.06]
[1754897070655,0.69,184.02,183.99,0.06]
[1754897070846,0.69,184.02,183.99,4.86862559]
[1754897071045,0.69,184.02,183.99,0.06]
[1754897071363,36.24254837,184.03,183.99,0.06]
[1754897071570,4.80862559,184.06,183.99,0.06]
[1754897071732,5.49862559,184.02,183.99,0.06]
[1754897072253,36.9322546,184.04,183.99,4.86862559]
[1754897072457,0.69,184.02,183.99,0.06]
[1754897073573,0.69,184.02,183.99,4.86862559]
[1754897073769,26.69,184.04,184.0,4.80862559]
[1754897074071,0.69,184.04,184.0,5.48862559]
[1754897074377,5.435374,184.09,184.03,4.80862559]
[1754897074534,0.69,184.08,184.03,4.80862559]
[1754897074732,0.69,184.07,184.03,4.80862559]
[1754897075032,0.69,184.06,184.01,0.68]
[1754897075235,4.80862559,184.05,183.99,5.54862559]
[1754897075550,0.69,184.04,183.99,10.98359072]
[1754897075865,0.69,184.04,183.99,5.54862559]
[1754897075866,0.69,184.03,183.99,5.54862559]
[1754897076037,4.80862559,184.04,183.99,5.54862559]
[1754897076038,5.49862559,184.02,183.99,0.06]
[1754897076467,5.43343598,184.05,183.99,0.06]
[1754897076468,5.49862559,184.01,183.99,0.06]
[1754897076936,0.69,184.0,183.99,0.06]
[1754897077263,5.49862559,184.0,183.99,0.06]
[1754897077437,0.69,184.0,183.99,0.06]
[1754897080263,10.93340819,184.0,183.99,0.06]
[1754897080433,6.1247826,184.0,183.99,0.06]
[1754897080858,10.24319506,184.01,183.99,0.06]
[1754897081236,10.93319506,184.01,183.99,0.06]
[1754897081435,5.49862559,184.01,183.99,0.06]
[1754897081853,0.69,184.01,183.99,0.06]
[1754897082473,6.1244889,184.01,183.99,0.06]
[1754897083159,36.24275456,184.03,183.99,0.06]
[1754897083357,32.12412897,184.03,183.99,0.06]
[1754897083740,43.00862559,184.05,184.0,5.48862559]
[1754897083944,38.2,184.05,184.01,5.48862559]
[1754897084157,38.89,184.05,184.01,5.48862559]
[1754897084561,43.63331,184.05,184.0,10.24339012]
[1754897084863,0.69,184.04,184.0,6.11476453]
[1754897085038,0.69,184.04,184.0,5.48862559]
[1754897085853,0.69,184.04,184.0,0.68]
[1754897086055,0.69,184.04,184.0,5.48862559]
[1754897086252,0.69,184.04,184.0,0.68]
[1754897086465,0.69,184.04,184.0,5.48862559]
[1754897087563,6.12361534,184.04,184.0,5.48862559]
[1754897088355,5.49862559,184.03,183.99,0.06]
[1754897088878,0.69,184.02,183.99,0.06]
[1754897089247,0.69,184.01,183.99,0.06]
[1754897089446,4.80862559,184.0,183.99,0.06]
[1754897089658,5.49862559,184.0,183.99,0.06]
[1754897089967,0.69,184.0,183.99,0.06]
[1754897090681,10.24199086,184.05,183.99,5.54862559]
[1754897090849,4.80862559,184.03,183.99,0.06]
[1754897091351,5.49862559,184.02,183.99,0.06]
[1754897091768,5.49862559,184.01,183.99,0.06]
[1754897092375,0.69,184.0,183.99,0.06]
[1754897092769,10.93340819,184.0,183.99,0.06]
[1754897092945,5.49862559,184.0,183.99,0.06]
[1754897093264,10.93340819,184.0,183.99,0.06]
[1754897096291,26.0,184.0,183.99,0.06]
[1754897096858,6.12301097,184.06,183.99,5.54862559]
[1754897097178,6.12301097,184.06,184.0,5.48862559]
[1754897097179,43.04862559,184.05,184.0,5.48862559]
[1754897097483,4.80862559,184.03,183.99,0.06]
[1754897097680,5.49862559,184.04,183.99,0.06]
[1754897097858,0.69,184.03,183.99,5.54862559]
[1754897098361,10.24238563,184.04,184.0,0.68]
[1754897098564,5.43376004,184.04,184.0,0.68]
[1754897098854,5.43376004,184.04,184.01,0.68]
[1754897099077,5.43376004,184.04,184.01,5.48862559]
[1754897099569,44.36331904,184.05,184.01,5.48862559]
[1754897099765,38.93,184.05,184.01,5.48862559]
[1754897100157,38.24,184.05,184.01,4.80862559]